[Event "Early-Titled-Tuesday-Blitz-June-18-2024"]
[Site "Chess.com"]
[Date "2024.06.18"]
[Round "9"]
[White "gilbert_gm"]
[Black "AldokhinIvan"]
[Result "1-0"]
[WhiteElo "2866"]
[BlackElo "2644"]
[TimeControl "180+1"]
[EndTime "9:47:26 PDT"]
[Termination "gilbert_gm won on time"]

1. e4 {[%clk 0:03:00.9]} 1... c5 {[%clk 0:02:58.7]} 2. h3 {[%clk 0:03:01.2]}
2... e6 {[%clk 0:02:59.3]} 3. Nf3 {[%clk 0:02:59.1]} 3... Nc6 {[%clk 0:02:56.5]}
4. Bb5 {[%clk 0:02:57]} 4... Nd4 {[%clk 0:02:53.3]} 5. Be2 {[%clk 0:02:48.5]}
5... Nxf3+ {[%clk 0:02:46.4]} 6. Bxf3 {[%clk 0:02:48.4]} 6... Qc7 {[%clk
0:02:46.2]} 7. O-O {[%clk 0:02:47.3]} 7... Nf6 {[%clk 0:02:45.6]} 8. Re1 {[%clk
0:02:43.9]} 8... Bd6 {[%clk 0:02:44.8]} 9. Na3 {[%clk 0:02:41.3]} 9... a6 {[%clk
0:02:04.5]} 10. Nc4 {[%clk 0:02:40.1]} 10... e5 {[%clk 0:01:51.1]} 11. a4 {[%clk
0:02:39.9]} 11... O-O {[%clk 0:01:43.6]} 12. a5 {[%clk 0:02:31.2]} 12... Be7
{[%clk 0:01:37.4]} 13. d3 {[%clk 0:02:27.5]} 13... d6 {[%clk 0:01:35.1]} 14. Bg5
{[%clk 0:02:27.2]} 14... Be6 {[%clk 0:01:34.7]} 15. Nb6 {[%clk 0:02:26.9]} 15...
Rae8 {[%clk 0:01:27.2]} 16. Bxf6 {[%clk 0:02:23.2]} 16... Bxf6 {[%clk
0:01:25.4]} 17. Bg4 {[%clk 0:02:24.1]} 17... g6 {[%clk 0:01:22.4]} 18. c3 {[%clk
0:02:21.5]} 18... Bg7 {[%clk 0:01:17]} 19. Bxe6 {[%clk 0:02:20.1]} 19... fxe6
{[%clk 0:01:14.3]} 20. b4 {[%clk 0:02:16.4]} 20... cxb4 {[%clk 0:00:59.6]} 21.
cxb4 {[%clk 0:02:17.3]} 21... Qc3 {[%clk 0:00:56.5]} 22. Rb1 {[%clk 0:02:13.8]}
22... Qd4 {[%clk 0:00:51.7]} 23. Qd2 {[%clk 0:02:07]} 23... Rf7 {[%clk 0:00:51]}
24. Qe3 {[%clk 0:02:07]} 24... Qxe3 {[%clk 0:00:28.7]} 25. Rxe3 {[%clk
0:02:07.9]} 25... Rd8 {[%clk 0:00:28.9]} 26. Re2 {[%clk 0:02:05.6]} 26... d5
{[%clk 0:00:29]} 27. Rc2 {[%clk 0:02:03.8]} 27... Bf8 {[%clk 0:00:26.3]} 28. b5
{[%clk 0:01:50.3]} 28... axb5 {[%clk 0:00:25.7]} 29. Rxb5 {[%clk 0:01:51.2]}
29... dxe4 {[%clk 0:00:22.1]} 30. dxe4 {[%clk 0:01:52.1]} 30... Rd1+ {[%clk
0:00:21]} 31. Kh2 {[%clk 0:01:52.6]} 31... Rf1 {[%clk 0:00:21.1]} 32. Rbb2
{[%clk 0:01:41.3]} 32... Ba3 {[%clk 0:00:15.8]} 33. Ra2 {[%clk 0:01:41.5]} 33...
Bb4 {[%clk 0:00:16.4]} 34. g3 {[%clk 0:01:38]} 34... Re1 {[%clk 0:00:12.7]} 35.
Ra4 {[%clk 0:01:18.3]} 35... Bc5 {[%clk 0:00:08.9]} 36. Kg2 {[%clk 0:01:16]}
36... Bd4 {[%clk 0:00:09]} 37. Nc4 {[%clk 0:01:11.6]} 37... Rb1 {[%clk
0:00:07.6]} 38. Raa2 {[%clk 0:01:05.2]} 38... Rc7 {[%clk 0:00:07]} 39. Nd6
{[%clk 0:01:01]} 39... Rd7 {[%clk 0:00:07.2]} 40. Nc4 {[%clk 0:00:55.6]} 40...
Re1 {[%clk 0:00:06]} 41. a6 {[%clk 0:00:50.9]} 41... bxa6 {[%clk 0:00:05.2]} 42.
Rxa6 {[%clk 0:00:51.8]} 42... Rxe4 {[%clk 0:00:03.2]} 43. Rxe6 {[%clk
0:00:49.3]} 43... Re1 {[%clk 0:00:03.2]} 44. Ra2 {[%clk 0:00:42.1]} 44... Rc7
{[%clk 0:00:02.4]} 45. Nd6 {[%clk 0:00:38.2]} 45... Rd7 {[%clk 0:00:01.6]} 46.
Nc4 {[%clk 0:00:23.9]} 46... Kg7 {[%clk 0:00:02.2]} 47. Rd2 {[%clk 0:00:21.5]}
47... Kf7 {[%clk 0:00:01.8]} 48. Rxe5 {[%clk 0:00:18.3]} 1-0

[Event "Early-Titled-Tuesday-Blitz-June-18-2024"]
[Site "Chess.com"]
[Date "2024.06.18"]
[Round "9"]
[White "JJDAREK"]
[Black "IndianSchoolOfSuffering"]
[Result "1/2-1/2"]
[WhiteElo "2344"]
[BlackElo "2510"]
[TimeControl "180+1"]
[EndTime "9:47:26 PDT"]
[Termination "Game drawn by repetition"]

1. Nf3 {[%clk 0:02:58.7]} 1... g6 {[%clk 0:02:49.9]} 2. c4 {[%clk 0:02:53.9]}
2... Bg7 {[%clk 0:02:49.3]} 3. Nc3 {[%clk 0:02:54.2]} 3... c5 {[%clk 0:02:44.6]}
4. e3 {[%clk 0:02:51]} 4... Nf6 {[%clk 0:02:43.1]} 5. d4 {[%clk 0:02:51.5]} 5...
cxd4 {[%clk 0:02:42.8]} 6. exd4 {[%clk 0:02:52.4]} 6... d5 {[%clk 0:02:43.2]} 7.
cxd5 {[%clk 0:02:42.5]} 7... Nxd5 {[%clk 0:02:42.5]} 8. Bc4 {[%clk 0:02:38.3]}
8... Nxc3 {[%clk 0:02:42.2]} 9. bxc3 {[%clk 0:02:37.6]} 9... O-O {[%clk
0:02:41.7]} 10. O-O {[%clk 0:02:33.2]} 10... a6 {[%clk 0:02:41.9]} 11. a4 {[%clk
0:02:32.1]} 11... Nc6 {[%clk 0:02:41.9]} 12. Re1 {[%clk 0:02:28.6]} 12... Na5
{[%clk 0:02:40.5]} 13. Ba2 {[%clk 0:02:21.1]} 13... Bg4 {[%clk 0:02:30]} 14. h3
{[%clk 0:02:20.2]} 14... Bxf3 {[%clk 0:02:30.1]} 15. Qxf3 {[%clk 0:02:20.9]}
15... e6 {[%clk 0:02:24.7]} 16. Rb1 {[%clk 0:02:12.6]} 16... Rc8 {[%clk
0:02:23.6]} 17. Ba3 {[%clk 0:02:06.2]} 17... Qd7 {[%clk 0:02:21.2]} 18. Bxf8
{[%clk 0:02:04.4]} 18... Bxf8 {[%clk 0:02:20.3]} 19. d5 {[%clk 0:01:45.1]} 19...
exd5 {[%clk 0:02:18.8]} 20. Qxd5 {[%clk 0:01:22.8]} 20... Qxd5 {[%clk
0:01:55.5]} 21. Bxd5 {[%clk 0:01:23.7]} 21... Rc7 {[%clk 0:01:55.7]} 22. Re8
{[%clk 0:01:14.2]} 22... Kg7 {[%clk 0:01:47.9]} 23. Rb8 {[%clk 0:01:13.8]} 23...
Rxc3 {[%clk 0:01:37.1]} 24. Bxb7 {[%clk 0:01:12]} 24... Nxb7 {[%clk 0:01:27.1]}
25. R8xb7 {[%clk 0:01:12.9]} 25... Bc5 {[%clk 0:01:16.1]} 26. R7b2 {[%clk
0:00:56.4]} 26... a5 {[%clk 0:01:13.3]} 27. Ra2 {[%clk 0:00:52.2]} 27... h5
{[%clk 0:01:11.7]} 28. h4 {[%clk 0:00:44.8]} 28... Kh6 {[%clk 0:01:06.4]} 29.
Rb5 {[%clk 0:00:42]} 29... Kg7 {[%clk 0:01:02]} 30. Kh2 {[%clk 0:00:37.4]} 30...
Bb4 {[%clk 0:00:55.8]} 31. g3 {[%clk 0:00:36.7]} 31... Rc4 {[%clk 0:00:52.6]}
32. Kg2 {[%clk 0:00:35.6]} 32... Rc6 {[%clk 0:00:51.9]} 33. Rb2 {[%clk
0:00:34.5]} 33... Rc4 {[%clk 0:00:50.9]} 34. Rb7 {[%clk 0:00:33.5]} 34... Rd4
{[%clk 0:00:50.6]} 35. Re2 {[%clk 0:00:33]} 35... Rd5 {[%clk 0:00:50.1]} 36. Rc2
{[%clk 0:00:32.1]} 36... Rf5 {[%clk 0:00:49.2]} 37. f4 {[%clk 0:00:31.3]} 37...
Rf6 {[%clk 0:00:45.8]} 38. Rcc7 {[%clk 0:00:30.9]} 38... Rf5 {[%clk 0:00:46]}
39. Rd7 {[%clk 0:00:30.7]} 39... Rf6 {[%clk 0:00:46.1]} 40. Kf3 {[%clk
0:00:31.1]} 40... Rf5 {[%clk 0:00:46.4]} 41. Ke4 {[%clk 0:00:31.4]} 41... Rf6
{[%clk 0:00:46.2]} 42. Rd5 {[%clk 0:00:26.3]} 42... Be1 {[%clk 0:00:45.1]} 43.
Kf3 {[%clk 0:00:25.2]} 43... Bb4 {[%clk 0:00:44.3]} 44. Rdb5 {[%clk 0:00:22.9]}
44... Bc3 {[%clk 0:00:41.3]} 45. Rc5 {[%clk 0:00:21.3]} 45... Bb4 {[%clk
0:00:41.3]} 46. Rcc7 {[%clk 0:00:20.9]} 46... Rf5 {[%clk 0:00:40.8]} 47. Rc8
{[%clk 0:00:20.5]} 47... Rf6 {[%clk 0:00:40.7]} 48. Rbb8 {[%clk 0:00:20.7]}
48... Rd6 {[%clk 0:00:40.3]} 49. Rg8+ {[%clk 0:00:20.5]} 49... Kf6 {[%clk
0:00:40.4]} 50. Rgd8 {[%clk 0:00:19.8]} 50... Rc6 {[%clk 0:00:39.5]} 51. Rdc8
{[%clk 0:00:19.7]} 51... Rd6 {[%clk 0:00:39.2]} 52. Ra8 {[%clk 0:00:19.1]} 52...
Rd3+ {[%clk 0:00:38.2]} 53. Kg2 {[%clk 0:00:18.3]} 53... Rd2+ {[%clk 0:00:37.6]}
54. Kf3 {[%clk 0:00:18.5]} 54... Rd3+ {[%clk 0:00:37.4]} 55. Kg2 {[%clk
0:00:18.9]} 55... Rd2+ {[%clk 0:00:36.3]} 56. Kh3 {[%clk 0:00:19.3]} 56... Rd6
{[%clk 0:00:35.5]} 57. Rab8 {[%clk 0:00:18.2]} 57... Be1 {[%clk 0:00:34.5]} 58.
Rb3 {[%clk 0:00:16.2]} 58... Bb4 {[%clk 0:00:33.3]} 59. Rc4 {[%clk 0:00:15.7]}
59... Bd2 {[%clk 0:00:31.3]} 60. Rc2 {[%clk 0:00:15]} 60... Bb4 {[%clk
0:00:30.6]} 61. Rc4 {[%clk 0:00:15.1]} 61... Bd2 {[%clk 0:00:30.6]} 62. Kg2
{[%clk 0:00:14.6]} 62... Kg7 {[%clk 0:00:29.7]} 63. Kf3 {[%clk 0:00:14.6]} 63...
Be1 {[%clk 0:00:29.2]} 64. Re3 {[%clk 0:00:13.6]} 64... Bd2 {[%clk 0:00:28.6]}
65. Re2 {[%clk 0:00:12.7]} 65... Bb4 {[%clk 0:00:28]} 66. Ree4 {[%clk
0:00:12.6]} 66... Rd3+ {[%clk 0:00:28]} 67. Re3 {[%clk 0:00:12.3]} 67... Rd6
{[%clk 0:00:27.6]} 68. Ree4 {[%clk 0:00:12.6]} 68... Rd3+ {[%clk 0:00:27.5]} 69.
Re3 {[%clk 0:00:12.9]} 69... Rd6 {[%clk 0:00:27.4]} 70. Ree4 {[%clk 0:00:13.2]}
1/2-1/2

[Event "Early-Titled-Tuesday-Blitz-June-18-2024"]
[Site "Chess.com"]
[Date "2024.06.18"]
[Round "9"]
[White "doublesik"]
[Black "azikom"]
[Result "1-0"]
[WhiteElo "2589"]
[BlackElo "2681"]
[TimeControl "180+1"]
[EndTime "9:47:27 PDT"]
[Termination "doublesik won on time"]

1. d4 {[%clk 0:03:00]} 1... Nf6 {[%clk 0:01:58.7]} 2. c4 {[%clk 0:02:59.7]} 2...
e6 {[%clk 0:01:58.1]} 3. Nf3 {[%clk 0:02:57.1]} 3... c5 {[%clk 0:01:57.9]} 4. d5
{[%clk 0:02:56.1]} 4... exd5 {[%clk 0:01:58.3]} 5. cxd5 {[%clk 0:02:57]} 5... d6
{[%clk 0:01:58.9]} 6. Nc3 {[%clk 0:02:56.3]} 6... a6 {[%clk 0:01:59.3]} 7. a4
{[%clk 0:02:54.4]} 7... g6 {[%clk 0:01:59.4]} 8. Nd2 {[%clk 0:02:46.3]} 8... Bg7
{[%clk 0:02:00.3]} 9. e4 {[%clk 0:02:45.1]} 9... O-O {[%clk 0:02:00.4]} 10. Be2
{[%clk 0:02:43.9]} 10... Nbd7 {[%clk 0:02:00.2]} 11. O-O {[%clk 0:02:42]} 11...
Re8 {[%clk 0:02:00.7]} 12. Qc2 {[%clk 0:02:39]} 12... Rb8 {[%clk 0:01:56.2]} 13.
Nc4 {[%clk 0:02:31]} 13... Nb6 {[%clk 0:01:55.7]} 14. Ne3 {[%clk 0:02:27.9]}
14... Nfd7 {[%clk 0:01:54.6]} 15. a5 {[%clk 0:02:24.4]} 15... Na8 {[%clk
0:01:54.9]} 16. Kh1 {[%clk 0:02:19.4]} 16... Qc7 {[%clk 0:01:45.8]} 17. f4
{[%clk 0:02:16.1]} 17... Nf6 {[%clk 0:01:43.3]} 18. Nc4 {[%clk 0:02:03.6]} 18...
b5 {[%clk 0:01:43.3]} 19. axb6 {[%clk 0:02:03.1]} 19... Nxb6 {[%clk 0:01:43.8]}
20. Na5 {[%clk 0:02:01.9]} 20... Bd7 {[%clk 0:01:42.7]} 21. Bf3 {[%clk
0:01:58.2]} 21... Bg4 {[%clk 0:01:30.9]} 22. Bd2 {[%clk 0:01:54.2]} 22... Bxf3
{[%clk 0:01:30.5]} 23. Rxf3 {[%clk 0:01:55.1]} 23... Nbd7 {[%clk 0:01:26.5]} 24.
Nc6 {[%clk 0:01:53.3]} 24... Rb6 {[%clk 0:01:18.9]} 25. Raf1 {[%clk 0:01:10.7]}
25... Rb4 {[%clk 0:01:10.6]} 26. Re3 {[%clk 0:01:02.9]} 26... Ng4 {[%clk
0:01:08.2]} 27. Re2 {[%clk 0:01:00.9]} 27... Nb8 {[%clk 0:00:58.3]} 28. Nxb4
{[%clk 0:00:47.9]} 28... cxb4 {[%clk 0:00:58]} 29. Qa4 {[%clk 0:00:48.5]} 29...
Nd7 {[%clk 0:00:34.5]} 30. Qxb4 {[%clk 0:00:48.5]} 30... Rb8 {[%clk 0:00:34.1]}
31. Qa3 {[%clk 0:00:44.8]} 31... h5 {[%clk 0:00:29.9]} 32. h3 {[%clk 0:00:42.8]}
32... Ngf6 {[%clk 0:00:29.7]} 33. e5 {[%clk 0:00:35.3]} 33... dxe5 {[%clk
0:00:29.2]} 34. fxe5 {[%clk 0:00:36.2]} 34... Nxe5 {[%clk 0:00:27.8]} 35. d6
{[%clk 0:00:30.3]} 35... Qc4 {[%clk 0:00:25.4]} 36. Rd1 {[%clk 0:00:26.9]} 36...
Nfd7 {[%clk 0:00:23.5]} 37. Re4 {[%clk 0:00:21.7]} 37... Qc6 {[%clk 0:00:22.7]}
38. Bf4 {[%clk 0:00:18.7]} 38... Nc4 {[%clk 0:00:20.9]} 39. Qa4 {[%clk
0:00:17.1]} 39... Qxa4 {[%clk 0:00:18]} 40. Nxa4 {[%clk 0:00:18]} 40... Nxb2
{[%clk 0:00:12.3]} 41. Nxb2 {[%clk 0:00:17.6]} 41... Rxb2 {[%clk 0:00:12.2]} 42.
Re7 {[%clk 0:00:15.3]} 42... Rb7 {[%clk 0:00:11.5]} 43. Re8+ {[%clk 0:00:13.2]}
43... Kh7 {[%clk 0:00:11.2]} 44. Rc8 {[%clk 0:00:13.8]} 44... Rb4 {[%clk
0:00:08.4]} 45. Rc7 {[%clk 0:00:12.1]} 45... Rxf4 {[%clk 0:00:07.9]} 46. Rxd7
{[%clk 0:00:12.6]} 46... Rf2 {[%clk 0:00:06.4]} 47. Ra7 {[%clk 0:00:11.9]} 47...
Bf6 {[%clk 0:00:04.4]} 48. Rxf7+ {[%clk 0:00:11.6]} 48... Kg8 {[%clk 0:00:03.9]}
49. Rxf6 {[%clk 0:00:11]} 49... Rxf6 {[%clk 0:00:03.5]} 50. d7 {[%clk
0:00:11.6]} 50... Rf8 {[%clk 0:00:04.4]} 51. d8=Q {[%clk 0:00:12.1]} 1-0

[Event "Early-Titled-Tuesday-Blitz-June-18-2024"]
[Site "Chess.com"]
[Date "2024.06.18"]
[Round "9"]
[White "Rud_Makarian"]
[Black "BardArtem"]
[Result "1/2-1/2"]
[WhiteElo "3055"]
[BlackElo "2848"]
[TimeControl "180+1"]
[EndTime "9:47:32 PDT"]
[Termination "Game drawn - insufficient material"]

1. c4 {[%clk 0:02:59.8]} 1... e6 {[%clk 0:02:58.5]} 2. Nf3 {[%clk 0:03:00.3]}
2... d5 {[%clk 0:02:57.3]} 3. g3 {[%clk 0:03:01.2]} 3... Nf6 {[%clk 0:02:47.9]}
4. Bg2 {[%clk 0:03:02.1]} 4... Bd6 {[%clk 0:02:48.5]} 5. d4 {[%clk 0:02:52.5]}
5... O-O {[%clk 0:02:48.4]} 6. Nbd2 {[%clk 0:02:52.8]} 6... b6 {[%clk
0:02:47.2]} 7. O-O {[%clk 0:02:52.1]} 7... Bb7 {[%clk 0:02:47.1]} 8. b3 {[%clk
0:02:47]} 8... Nbd7 {[%clk 0:02:46]} 9. Bb2 {[%clk 0:02:47.1]} 9... Re8 {[%clk
0:02:46.2]} 10. Ne5 {[%clk 0:02:45.3]} 10... Qc8 {[%clk 0:02:45.1]} 11. cxd5
{[%clk 0:02:41.5]} 11... exd5 {[%clk 0:02:44.1]} 12. Ndf3 {[%clk 0:02:37.6]}
12... Bxe5 {[%clk 0:02:11.6]} 13. dxe5 {[%clk 0:02:31.1]} 13... Ne4 {[%clk
0:02:11.4]} 14. Qc2 {[%clk 0:02:09.8]} 14... c5 {[%clk 0:02:08.8]} 15. Rad1
{[%clk 0:02:08.9]} 15... f6 {[%clk 0:01:57]} 16. Bh3 {[%clk 0:01:56.2]} 16...
fxe5 {[%clk 0:00:54.7]} 17. Bxd7 {[%clk 0:01:47.3]} 17... Qxd7 {[%clk
0:00:54.4]} 18. Qxe4 {[%clk 0:01:47.4]} 18... dxe4 {[%clk 0:00:55.3]} 19. Rxd7
{[%clk 0:01:47.2]} 19... Bc8 {[%clk 0:00:50.7]} 20. Rc7 {[%clk 0:01:28.3]} 20...
exf3 {[%clk 0:00:47.9]} 21. exf3 {[%clk 0:01:29.2]} 21... Bh3 {[%clk 0:00:38.3]}
22. Re1 {[%clk 0:01:29.4]} 22... Rad8 {[%clk 0:00:35.4]} 23. Rxa7 {[%clk
0:01:02.6]} 23... Rd3 {[%clk 0:00:28.4]} 24. f4 {[%clk 0:00:59.9]} 24... Red8
{[%clk 0:00:28.9]} 25. Re7 {[%clk 0:00:35.8]} 25... Rd1 {[%clk 0:00:11.1]} 26.
Rxe5 {[%clk 0:00:35.9]} 26... Rxe1+ {[%clk 0:00:11.9]} 27. Rxe1 {[%clk
0:00:36.8]} 27... Rd2 {[%clk 0:00:12.7]} 28. Be5 {[%clk 0:00:24.7]} 28... Rxa2
{[%clk 0:00:12.7]} 29. Ra1 {[%clk 0:00:17.5]} 29... Rxa1+ {[%clk 0:00:11.4]} 30.
Bxa1 {[%clk 0:00:18.4]} 30... Be6 {[%clk 0:00:12.1]} 31. b4 {[%clk 0:00:18.4]}
31... cxb4 {[%clk 0:00:11]} 32. f3 {[%clk 0:00:18.7]} 32... h5 {[%clk
0:00:08.1]} 33. Kf2 {[%clk 0:00:18.5]} 33... b3 {[%clk 0:00:06.5]} 34. Kg2
{[%clk 0:00:17.3]} 34... g6 {[%clk 0:00:05.3]} 35. h3 {[%clk 0:00:17.9]} 35...
b5 {[%clk 0:00:03.6]} 36. g4 {[%clk 0:00:18.3]} 36... hxg4 {[%clk 0:00:04.5]}
37. fxg4 {[%clk 0:00:17.5]} 37... Kf7 {[%clk 0:00:04.7]} 38. Kg3 {[%clk
0:00:18]} 38... Bc4 {[%clk 0:00:04.9]} 39. Bb2 {[%clk 0:00:14.5]} 39... Bf1
{[%clk 0:00:04.3]} 40. Kh4 {[%clk 0:00:09.7]} 40... Ke6 {[%clk 0:00:03.4]} 41.
Kg3 {[%clk 0:00:09.7]} 41... Kf7 {[%clk 0:00:03.7]} 42. Bc3 {[%clk 0:00:05.7]}
42... Ke6 {[%clk 0:00:04.1]} 43. h4 {[%clk 0:00:05.9]} 43... Kf7 {[%clk
0:00:03.8]} 44. Kf3 {[%clk 0:00:05.7]} 44... Bc4 {[%clk 0:00:03.9]} 45. Ke4
{[%clk 0:00:02.4]} 45... Be2 {[%clk 0:00:03.8]} 46. f5 {[%clk 0:00:02]} 46...
Bxg4 {[%clk 0:00:03.1]} 47. fxg6+ {[%clk 0:00:02.3]} 47... Kxg6 {[%clk 0:00:04]}
48. Bb2 {[%clk 0:00:03]} 48... Kh5 {[%clk 0:00:04.5]} 49. Kd4 {[%clk 0:00:03.9]}
49... Kxh4 {[%clk 0:00:05.4]} 50. Kc5 {[%clk 0:00:04.8]} 50... Be2 {[%clk
0:00:05.7]} 51. Kb4 {[%clk 0:00:05.7]} 51... Bg4 {[%clk 0:00:05.8]} 52. Kxb3
{[%clk 0:00:05.8]} 52... Bh3 {[%clk 0:00:06.7]} 53. Kb4 {[%clk 0:00:06.7]} 53...
Bg4 {[%clk 0:00:07.6]} 54. Kxb5 {[%clk 0:00:07.6]} 1/2-1/2

[Event "Early-Titled-Tuesday-Blitz-June-18-2024"]
[Site "Chess.com"]
[Date "2024.06.18"]
[Round "9"]
[White "snowlord"]
[Black "Mops_2004"]
[Result "1/2-1/2"]
[WhiteElo "2958"]
[BlackElo "2815"]
[TimeControl "180+1"]
[EndTime "9:47:35 PDT"]
[Termination "Game drawn by repetition"]

1. e4 {[%clk 0:02:58.9]} 1... g6 {[%clk 0:03:00.2]} 2. d4 {[%clk 0:02:58.7]}
2... Bg7 {[%clk 0:03:00.5]} 3. Nc3 {[%clk 0:02:59.4]} 3... d6 {[%clk 0:03:00.8]}
4. Be3 {[%clk 0:02:59.1]} 4... a6 {[%clk 0:03:01.1]} 5. g4 {[%clk 0:02:59.3]}
5... Nd7 {[%clk 0:03:00.3]} 6. h4 {[%clk 0:02:58.9]} 6... c5 {[%clk 0:02:58.1]}
7. h5 {[%clk 0:02:57.4]} 7... g5 {[%clk 0:02:58.1]} 8. Nge2 {[%clk 0:02:44.8]}
8... cxd4 {[%clk 0:02:47]} 9. Nxd4 {[%clk 0:02:45.7]} 9... Ne5 {[%clk
0:02:40.6]} 10. Be2 {[%clk 0:02:44]} 10... h6 {[%clk 0:02:37.6]} 11. f3 {[%clk
0:02:31.3]} 11... Nf6 {[%clk 0:02:36.4]} 12. Qd2 {[%clk 0:02:31.9]} 12... b5
{[%clk 0:02:26.1]} 13. O-O-O {[%clk 0:02:19.2]} 13... Bd7 {[%clk 0:02:19.5]} 14.
Kb1 {[%clk 0:02:19.2]} 14... Rc8 {[%clk 0:02:18.4]} 15. Nd5 {[%clk 0:02:09.8]}
15... Nxd5 {[%clk 0:01:54.6]} 16. exd5 {[%clk 0:02:10.7]} 16... Qc7 {[%clk
0:01:54]} 17. Rhe1 {[%clk 0:02:04.7]} 17... Qb7 {[%clk 0:01:52.4]} 18. Nf5
{[%clk 0:01:53.7]} 18... Bxf5 {[%clk 0:01:48.4]} 19. gxf5 {[%clk 0:01:54.6]}
19... Bf6 {[%clk 0:01:39]} 20. f4 {[%clk 0:01:46.8]} 20... gxf4 {[%clk
0:01:27.1]} 21. Bxf4 {[%clk 0:01:47.7]} 21... Kd7 {[%clk 0:01:08.6]} 22. Bxe5
{[%clk 0:01:13.4]} 22... Bxe5 {[%clk 0:00:31.2]} 23. f6 {[%clk 0:01:14.3]} 23...
Rcg8 {[%clk 0:00:30.4]} 24. fxe7 {[%clk 0:01:06.3]} 24... Kxe7 {[%clk
0:00:30.9]} 25. Qb4 {[%clk 0:00:56.3]} 25... Rg5 {[%clk 0:00:26.2]} 26. Bd3
{[%clk 0:00:39.8]} 26... Qc7 {[%clk 0:00:23.5]} 27. a3 {[%clk 0:00:29.1]} 27...
f6 {[%clk 0:00:23.4]} 28. Bg6 {[%clk 0:00:25.8]} 28... a5 {[%clk 0:00:20.3]} 29.
Qe4 {[%clk 0:00:23.8]} 29... Rb8 {[%clk 0:00:17]} 30. Rg1 {[%clk 0:00:21.1]}
30... Qc4 {[%clk 0:00:07.7]} 31. Qe1 {[%clk 0:00:14.4]} 31... b4 {[%clk
0:00:07]} 32. Rxg5 {[%clk 0:00:14.4]} 32... hxg5 {[%clk 0:00:06]} 33. axb4
{[%clk 0:00:03.8]} 33... Rxb4 {[%clk 0:00:06.9]} 34. c3 {[%clk 0:00:04.2]} 34...
Qxc3 {[%clk 0:00:04.8]} 35. Qxc3 {[%clk 0:00:04.5]} 35... Bxc3 {[%clk
0:00:05.7]} 36. Kc2 {[%clk 0:00:03.2]} 36... Bxb2 {[%clk 0:00:04.5]} 37. h6
{[%clk 0:00:03.9]} 37... f5 {[%clk 0:00:03.8]} 38. h7 {[%clk 0:00:04.1]} 38...
Be5 {[%clk 0:00:02.4]} 39. Re1 {[%clk 0:00:04.1]} 39... Rb8 {[%clk 0:00:02.1]}
40. Bxf5 {[%clk 0:00:03.6]} 40... Kf6 {[%clk 0:00:02.1]} 41. Be4 {[%clk
0:00:04.2]} 41... Kg7 {[%clk 0:00:02.1]} 42. Rh1 {[%clk 0:00:04.6]} 42... a4
{[%clk 0:00:01.9]} 43. Rh3 {[%clk 0:00:03.7]} 43... Ra8 {[%clk 0:00:01]} 44. Ra3
{[%clk 0:00:03.8]} 44... Rc8+ {[%clk 0:00:01.9]} 45. Kd3 {[%clk 0:00:03.8]}
45... Ra8 {[%clk 0:00:02.8]} 46. Kc4 {[%clk 0:00:04]} 46... Kh8 {[%clk
0:00:03.4]} 47. Bf5 {[%clk 0:00:04.2]} 47... Rd8 {[%clk 0:00:03.5]} 48. Rxa4
{[%clk 0:00:03.9]} 48... Rf8 {[%clk 0:00:04.1]} 49. Bg6 {[%clk 0:00:03.5]} 49...
g4 {[%clk 0:00:04.4]} 50. Ra2 {[%clk 0:00:02.5]} 50... g3 {[%clk 0:00:04.9]} 51.
Rg2 {[%clk 0:00:03.1]} 51... Kg7 {[%clk 0:00:05.4]} 52. Be4 {[%clk 0:00:03.2]}
52... Kh6 {[%clk 0:00:05.7]} 53. Kd3 {[%clk 0:00:03.9]} 53... Kg5 {[%clk
0:00:06]} 54. Rg1 {[%clk 0:00:04.4]} 54... Kg4 {[%clk 0:00:06]} 55. Rh1 {[%clk
0:00:04.9]} 55... Rh8 {[%clk 0:00:05.9]} 56. Ke2 {[%clk 0:00:04.6]} 56... Rf8
{[%clk 0:00:06.5]} 57. Ke3 {[%clk 0:00:03.4]} 57... Bf4+ {[%clk 0:00:06.1]} 58.
Ke2 {[%clk 0:00:04]} 58... Be5 {[%clk 0:00:06.6]} 59. Ke3 {[%clk 0:00:04.1]}
59... Bf4+ {[%clk 0:00:06.5]} 60. Ke2 {[%clk 0:00:04.7]} 60... Be5 {[%clk
0:00:06.9]} 1/2-1/2